Cogmind - Beta 10 @@@ ROGUE MODE // 2020.09.09 @ 23:45:31 // Winter2019/RPGLIKE Player: Torako Result: Destroyed by as-49825 with Assembled Heavy Rifle Performance ------------- Evolutions (0) 0 Regions Visited (2) 400 Robots Destroyed (28) 140 Value Destroyed (727) 727 Prototype IDs (0) 0 Alien Tech Used (0) 0 Bonus (0) 0 TOTAL SCORE: 1267 Bonus ------- None Cogmind --------- Core Integrity 0/600 Matter 290/300 Energy 350/350 System Corruption 0% Temperature Cool (20) Movement Treading (160) Location -10/Mines Parts ------- > --- POWER (1) -------- Ion Engine > --- PROPULSION (1) --- Light Treads > --- UTILITY (2) ------ Signal Interpreter > --- WEAPON (2) ------- Mining Claw > --- INVENTORY (2) ---- Protomatter-50 Protomatter-44 Peak State ------------ > --- POWER ------------ Ion Engine > --- PROPULSION ------- Light Treads > --- UTILITY ---------- Targeting Computer Light Armor Plating > --- WEAPON ----------- EM Pulse Gun Mining Claw > --- INVENTORY -------- Protomatter Protomatter [Rating: 6] Favorites ----------- Power Ion Engine Engine Ion Engine Propulsion Light Treads Treads Light Treads Wheel Wheel Utility Targeting Computer Processor Targeting Computer Protection Light Armor Plating Weapon EM Pulse Gun Energy Gun EM Pulse Gun Ballistic Gun Assault Rifle Slashing Weapon Mining Claw Build | -11 -10 -10 ------- Run | Scr Mat Min Slots Evolved 2 | . 2 . Power . | . . . Propulsion . | . . . Utility 1 | . 1 . Weapon 1 | . 1 . Parts Attached 11 | 3 8 . Power 1 | 1 . . Engine 1 | 1 . . Core . | . . . Reactor . | . . . Propulsion 2 | 1 1 . Treads 1 | . 1 . Leg . | . . . Wheel 1 | 1 . . Hover . | . . . Flight . | . . . Utility 4 | . 4 . Device . | . . . Storage . | . . . Processor 2 | . 2 . Hackware . | . . . Protection 2 | . 2 . Artifact . | . . . Weapon 4 | 1 3 . Energy Gun 2 | . 2 . Energy Cannon . | . . . Ballistic Gun 1 | 1 . . Ballistic Cannon . | . . . Launcher . | . . . Special Weapon . | . . . Impact Weapon . | . . . Slashing Weapon 1 | . 1 . Piercing Weapon . | . . . Special Melee Weapon . | . . . Unidentified Prototypes . | . . . Parts Lost 2 | . . 2 Power . | . . . Propulsion . | . . . Utility 1 | . . 1 Weapon 1 | . . 1 Highest Loss Streak 2 | . . 2 Average Slot Usage (%) 92 | . 92 96 Engine 19 | . 19 16 Treads 18 | . 18 16 Processor 19 | . 19 16 Protection 10 | . 10 12 Energy Gun 18 | . 18 16 Slashing Weapon 3 | . 3 16 Naked Turns . | . . . Heaviest Build 12 | 7 12 12 Greatest Support 20 | 10 20 20 Greatest Overweight (x) . | . . . Average Overweight (x) . | . . . Largest Inventory Capacity 2 | 1 2 2 Average Capacity 1 | . 1 2 Most Carried 2 | 1 2 2 Average Carried 1 | . 1 2 Final Capacity 2 | 1 2 2 Final Carried 2 | 1 2 2 Class Distribution -------------------- 92% | Hacker-Mutant 7% | Mutant Dominant Class ---------------- Hacker-Mutant | -10/Materials Hacker-Mutant | -10/Mines Resources | -11 -10 -10 ----------- Run | Scr Mat Min Matter Collected 290 | 165 125 . Remotely . | . . . Salvage Created 705 | . 705 . Parts 58 | . 58 . Haulers Intercepted 2 | . 2 . Recyclers Shooed . | . . . Parts Field Recycled . | . . . Retrieved Matter . | . . . Parts Self-Destructed . | . . . Prevented . | . . . Kills | -11 -10 -10 ------- Run | Scr Mat Min Combat Hostiles Destroyed 22 | . 21 1 Guns 18 | . 17 1 AOE 3 | . 3 . Classes Destroyed 6 | . 5 1 Hauler 2 | . 2 . Operator 1 | . 1 . Watcher 3 | . 3 . Swarmer 6 | . 6 . Grunt 15 | . 15 . Demolisher 1 | . . 1 Best Kill Streak 3 | . 3 1 Combat Bots Only 3 | . 3 1 Max Kills in Single Turn 3 | . 3 1 Gunslinging . | . . . Exploded 3 | . 3 . Melee . | . . . Uniques/NPCs Destroyed . | . . . Combat | -11 -10 -10 -------- Run | Scr Mat Min Damage Taken 1140 | . 352 788 Core 863 | . 271 592 Absorbed by Shields . | . . . Redirected to Core 628 | . 198 430 Core Remaining (%) 100 | 100 . . Volleys Fired 82 | . 77 5 Largest 1 | . 1 1 Hottest 50 | . 50 40 Shots Fired 82 | . 77 5 Gun 82 | . 77 5 Cannon . | . . . Launcher . | . . . Special . | . . . Kinetic . | . . . Thermal 24 | . 24 . Explosive . | . . . Electromagnetic 58 | . 53 5 Robot Hit Streak 14 | . 14 7 Robot Miss Streak 2 | . 2 . Penetration Max . | . . . Secondary Targets . | . . . Shots Hit Robots 70 | . 65 5 Core Hits 35 | . 33 2 Critical Hits . | . . . Critical Kills . | . . . Critical Parts Destroyed . | . . . Melee Attacks 5 | . 5 . Impact . | . . . Slashing 5 | . 5 . Piercing . | . . . Sneak Attacks . | . . . Combat Hostiles . | . . . Follow-up Attacks . | . . . Damage Inflicted 1193 | . 1133 60 Guns 993 | . 933 60 Cannons . | . . . Explosions 200 | . 200 . Melee . | . . . Ramming . | . . . Kinetic . | . . . Thermal 489 | . 489 . Explosive . | . . . Electromagnetic 704 | . 644 60 Impact . | . . . Slashing . | . . . Piercing . | . . . Highest Corruption . | . . . Average Corruption . | . . . Corruption Purged . | . . . Overload Shots . | . . . Overflow Damage 16 | . 16 . Projectiles . | . . . Explosions 16 | . 16 . Melee . | . . . Knockbacks . | . . . Impact . | . . . Kinetic . | . . . Secondary . | . . . Self-Inflicted Damage . | . . . Shots . | . . . Rammed . | . . . Targets Rammed . | . . . Kicked . | . . . Crushed . | . . . Highest Temperature . | . . . Average Temperature . | . . . Received Heat Transfer 187 | . 147 40 Siege Activations . | . . . Robots Corrupted . | . . . Combat Hostiles . | . . . Parts Fried 3 | . 3 . Impact Corruptions . | . . . Robots Melted 1 | . 1 . Combat Hostiles 1 | . 1 . Parts Melted 1 | . 1 . Heat Transferred 1014 | . 1014 . Parts Sabotaged . | . . . Parts Stolen . | . . . Parts Stripped . | . . . Power Chain Reactions 4 | . 4 . Missiles Intercepted . | . . . Alert | -11 -10 -10 ------- Run | Scr Mat Min Peak Influence 315 | . 315 66 Initial 36 | . . 36 Average 112 | . 116 50 Maximum Alert Level 1 | . 1 . Low Security (%) 86 | 100 85 100 Level 1 13 | . 14 . Level 2 . | . . . Level 3 . | . . . Level 4 . | . . . Level 5 . | . . . High Security . | . . . Max Security . | . . . Squads Dispatched 5 | . 5 . Investigation 4 | . 4 . Extermination . | . . . Reinforcement 1 | . 1 . Assault . | . . . Garrison . | . . . Intercept . | . . . Construction Impeded . | . . . Haulers Reinforced . | . . . Stealth | -11 -10 -10 --------- Run | Scr Mat Min Distress Signals 2 | . 1 1 Communications Jammed . | . . . Distress Signals . | . . . Times Spotted 43 | . 25 18 Peak Tracking Total 14 | . 3 14 Tactical Retreats 2 | . 1 1 Traps | -11 -10 -10 ------- Run | Scr Mat Min Traps Triggered 1 | . 1 . Indirectly . | . . . Trap Hack Attempts . | . . . Triggered . | . . . Disarmed . | . . . Reprogrammed . | . . . Reused . | . . . Traps Extracted . | . . . Installed . | . . . Triggered . | . . . Machines | -11 -10 -10 ---------- Run | Scr Mat Min Machines Disabled 1 | . 1 . Max in Single Turn 1 | . 1 . Machines Sabotaged . | . . . Garrisons Compromised . | . . . Overloaded Fab Kills . | . . . Fab Network Shutdowns . | . . . Hacking | -11 -10 -10 --------- Run | Scr Mat Min Machines Accessed 9 | . 9 . Terminals 7 | . 7 . Fabricators . | . . . Repair Stations . | . . . Recycling Units 2 | . 2 . Scanalyzers . | . . . Garrison Access . | . . . Total Hacks 39 | . 39 . Successful 23 | . 23 . Failed 16 | . 16 . Catastrophic 2 | . 2 . Database Lockouts . | . . . Manual 25 | . 25 . Terminals 35 | . 35 . Fabricators . | . . . Repair Stations . | . . . Recycling Units 4 | . 4 . Scanalyzers . | . . . Garrison Access . | . . . Terminal Hacks 15 | . 15 . Robot Analysis 4 | . 4 . Terminal Index 1 | . 1 . Alert Level 1 | . 1 . Unreport Threat 2 | . 2 . Locate Traps 2 | . 2 . Surveillance Status 2 | . 2 . Patrol Status 1 | . 1 . Hauler Manifests 1 | . 1 . Registered Components 1 | . 1 . Fabricator Hacks . | . . . Repair Station Hacks . | . . . Recycling Unit Hacks 2 | . 2 . Report Inventory 2 | . 2 . Scanalyzer . | . . . Garrison Access Hacks . | . . . Unauthorized Hacks 6 | . 6 . Terminals 4 | . 4 . Botnet 4 | . 4 . Fabricators . | . . . Repair Stations . | . . . Recycling Units 2 | . 2 . Tunnel 2 | . 2 . Scanalyzers . | . . . Garrison Access . | . . . Data Cores Recovered . | . . . Used . | . . . Hacking Detections 5 | . 5 . Full Trace Events 1 | . 1 . Feedback Events . | . . . Feedback Blocked . | . . . Robot Schematics Acquired . | . . . Robots Built . | . . . Matter . | . . . Time . | . . . Total Robot Build Rating . | . . . Part Schematics Acquired . | . . . Parts Built . | . . . Matter . | . . . Time . | . . . Total Part Build Rating . | . . . Parts Repaired . | . . . Time . | . . . Parts Recycled . | . . . Recycled Matter . | . . . Retrieved Matter . | . . . Retrieved Components . | . . . Parts Scanalyzed . | . . . Part Schematics Acquired . | . . . Parts Damaged . | . . . Bothacking | -11 -10 -10 ------------ Run | Scr Mat Min Used RIF Installer . | . . . Robots Hacked . | . . . Non-combat . | . . . Combat . | . . . Robot Hacks Applied . | . . . Relay Couplers Released . | . . . Robots Rewired . | . . . Allies Hacked . | . . . Hacks Repelled . | . . . Allies | -11 -10 -10 -------- Run | Scr Mat Min Total Allies . | . . . Largest Group . | . . . Highest-Rated Group . | . . . Highest-Rated Ally . | . . . Total Orders . | . . . Ally Attacks . | . . . Total Damage . | . . . Kills . | . . . Allies Corrupted . | . . . Allies Melted . | . . . Intel | -11 -10 -10 ------- Run | Scr Mat Min Robot Analysis Total 4 | . 4 . Derelict Logs Recovered . | . . . Drone Launches . | . . . Drone Recoveries . | . . . Exploration | -11 -10 -10 ------------- Run | Scr Mat Min Turns Passed 1561 | 29 1488 44 Spaces Moved 856 | 34 801 21 Core 10 | 10 . . Treads 777 | . 756 21 Legs . | . . . Wheels 69 | 24 45 . Hover . | . . . Flight . | . . . Fastest Speed 50 | 50 80 160 Average Speed 152 | 71 155 160 Slowest Speed 160 | 80 160 160 Overloaded Moves . | . . . Propulsion Burnouts . | . . . Robots Hopped . | . . . Cave-ins Triggered . | . . . Exploration Rate (%) 36 | 4 93 13 Regions Visited 2 Branch Regions 1 Pre-discovered Areas 2 | . 2 . Known Exits Taken 1 | . 1 . Unknown Exits Taken 1 | 1 . . Scrap Searched . | . . . Spaces Dug 3 | . 3 . Terrain Destroyed 13 | . 13 . Melee 3 | . 3 . Projectile . | . . . AOE 10 | . 10 . Terrain Rammed . | . . . Walls Destroyed . | . . . Machines Disabled . | . . . Actions | -11 -10 -10 --------- Run | Scr Mat Min Total 1025 | 37 961 27 Wait 40 | . 39 1 Move 854 | 33 800 21 Hop . | . . . Pick Up 7 | 1 6 . Fast Attach 9 | 3 6 . Attach . | . . . Detach 1 | . 1 . Swap 2 | . 2 . Drop 8 | . 8 . Fire 82 | . 77 5 Melee 5 | . 5 . Ram . | . . . Kick . | . . . Crush . | . . . Escape Stasis . | . . . Rewire . | . . . Trap . | . . . Miscellaneous 17 | . 17 . Route ------- -11/Scrapyard -10/Materials (discovered 4 exits: [*Mat x3] / *Min) -10/Mines (discovered 1 exit: [*Mat]) History --------- Turn | Location | Event 19 | -11/Scrapyard | Discovered new exit (range 14) 30 | -11/Scrapyard | Entered Materials 176 | -10/Materials | Discovered new exit (range 3) 381 | -10/Materials | Discovered new exit (range 13) 413 | -10/Materials | Build established: Hacker-Mutant 491 | -10/Materials | Discovered new exit (range 6) 517 | -10/Materials | Reached level 2 561 | -10/Materials | Upgraded with Utility slot (x1) 561 | -10/Materials | Upgraded with Weapon slot (x1) 1105 | -10/Materials | Reached level 3 1387 | -10/Materials | Discovered new exit (range 10) 1517 | -10/Materials | Identified exit to Mines 1518 | -10/Materials | Entered Mines 1519 | -10/Mines | Assembled infested the area 1524 | -10/Mines | Assisted by a Guerilla fighting off Assembled 1525 | -10/Mines | Received a Rocket Launcher from a helpful Derelict 1539 | -10/Mines | Discovered new exit (range 15) 1555 | -10/Mines | Core integrity fell below 50% 1561 | -10/Mines | Core integrity fell below 20% 1562 | -10/Mines | Destroyed by as-49825 with Assembled Heavy Rifle Last Messages --------------- K-01 Serf destroyed. YI-UF0: "KABOOM!" K-01 Serf destroyed. as-58386 destroyed. The unstable cave ceiling collapses. Critical hit. Lgt. Armor Plating destroyed. The unstable cave ceiling collapses. K-01 Serf destroyed. K-01 Serf collects debris. YI-UF0: "WHAAM!" as-72301 destroyed. The unstable cave ceiling collapses. K-01 Serf destroyed. R-06 Scavenger collects Wheel. The unstable cave ceiling collapses. EM Pulse Gun destroyed. YI-UF0: "BAROOM!" as-57346 destroyed. as-46293 destroyed. Map ----- +----------------------------------------------------+ | | | | | ?????????????????????????????????????????? | | ?????????????????????????????????????????? | | ?????????????????????????????????????????? | | ?????????????????????????????????????????? | | ?????????????????????????????????????????? | | ?????????????????????????????????????????? | | ?????????????????????????????????????????? | | ?????????????????????????????????????????? | | ????????????????#######??????????????????? | | ????????????????# ###???????????????? | | ???????????????## #???????????????? | | ???????????????? = #???????????????? | | ???????????????## % * ##??????????????? | | ??????????????## <* %= ##?????????????? | | ??????????????# *r [ #?????????????? | | ??????????????# = [ ##????????????? | | ??????????????# #????????????? | | ???????????????# #????????????? | | ???????????????# # ###??????????? | | ???????????????# ##?????????? | | ???????????????# # #?????????? | | ???????????????# #?????????? | | ??????????????## #?????????? | | ??????????????# @ ##?????????? | | ?????????????# a## g #??????????? | | ??????????$ " x# # #??????????? | | ?????????## ??# % #??????????? | | ??????????# ???## # #??????????? | | ??????????## ?????## a ###??????????? | | ???????????##???????## aa ##???????????? | | ????????????????????# a###????????????? | | ????????????????????### #??????????????? | | ????????????# ###### ##?????????????? | | ????????????# ]%! #?????????????? | | ????????????# x ! #?????????????? | | ????????????##### ##?????????????? | | ????????????????# ## ##??????????????? | | ???????????????# ]#?####???????????????? | | ??????????????# #?????????????????????? | | ?????????????# #??????????????????????? | | ?????????????# ???????????????????????? | | ????????????# ????????????????????????? | | ????????????# ?????????????????????????? | | ????????????## ??????????????????????????? | | ?????????????#???????????????????????????? | | ?????????????????????????????????????????? | | ?????????????????????????????????????????? | | ?????????????????????????????????????????? | +----------------------------------------------------+ Best States ------------- Heat Dissipation 49 Energy Generation 15 Energy Capacity 350 Matter Stores 300 Matter Capacity 300 Sight Range 16 Robot Scan Range 14 Terrain Scan Density 10 Armor Coverage 150 Weapon Shielding 33 Evasion (%) 44 Targeting Accuracy 5 Recoil Reduction 1 Offensive Hacking 10 Defensive Hacking 10 Item Schematics ----------------- None Robot Schematics ------------------ None Fabricated ------------ Nothing Alien Tech Used ----------------- None Achievements -------------- None Challenges ------------ None RPGLIKE | -11 -10 -10 --------- Run | Scr Mat Min Levels Raised 2 | . 2 . XP Earned 6730 | 3000 3080 650 XP Spent 5870 | 250 5620 . Upgrades 24 | 1 23 . Utility Slot 1 | . 1 . Weapon Slot 1 | . 1 . Heat Dissipation 4 | . 4 . Energy Generation 1 | . 1 . Energy Storage 2 | . 2 . Inventory Capacity 2 | 1 1 . Sensor Range 7 | . 7 . Ranged Accuracy 2 | . 2 . Hack Attack % 2 | . 2 . Hack Defense % 2 | . 2 . Protomatter Created 344 | . 344 . Integrity Restored 321 | . 321 . Core 262 | . 262 . Parts 59 | . 59 . Protomatter Decayed 140 | . 140 . Game ------ Seed ReclamationThiefDatajack Manual? 0 Play Time 00:15:32 Cumulative 213.2 hours Start 2020.09.09 @ 23:31:18 End 2020.09.09 @ 23:45:31 Sessions 1 Manual Loads 0 Difficulty Rogue Special Mode Winter2019/RPGLIKE Game No. 231 Rogue 231 Adventurer 0 Explorer 0 Win Type - Total 10 Types 8/0/2/0/0/0/0/0/0 Lore% 73 Gallery% 85 Achievement% 64 Wizard Run 0 Options --------- ASCII 0 Keyboard 1 Movement Numpad Keybinds 0 Fullscreen 1 Font 18/SmallcapsGlow Map View 76x50 Tactical HUD 1 Map Filters NONE Filters NONE Steam 1 RUN: e0eb1196-9700-480e-87cd-31466ecd446c